bitfinex-derivatives/quotes_ETHF0:USTF0_20251025
["timestamp","ask_amount","ask_price","bid_price","bid_amount"]
[1761353476986,9.6008,3929.8,3929.7,0.7939]
[1761353477592,9.8187,3929.8,3929.7,0.7939]
[1761353478394,9.8187,3929.8,3929.7,0.4463]
[1761353479693,10.72935607,3929.8,3929.7,0.4463]
[1761353480295,9.8187,3929.8,3929.7,0.7939]
[1761353482595,10.72935607,3929.8,3929.7,0.7939]
[1761353484094,0.942,3929.5,3929.4,3.2078]
[1761353484687,2.30988604,3929.5,3929.4,3.2078]
[1761353488396,2.30988604,3929.5,3929.1,0.46065656]
[1761353488595,0.8017,3929.2,3929.1,4.11475656]
[1761353488790,0.8017,3929.2,3929.1,4.46235656]
[1761353489905,0.8017,3929.2,3929.1,4.11475656]
[1761353491395,0.8017,3929.2,3929.1,3.89895656]
[1761353491593,1.71397848,3929.2,3929.1,3.89895656]
[1761353492402,1.71397848,3929.2,3929.1,4.11475656]
[1761353492603,0.8017,3929.2,3929.1,4.11475656]
[1761353492803,0.8017,3929.2,3929.1,4.46235656]
[1761353495701,0.8017,3929.2,3929.1,1.25455656]
[1761353499310,0.8017,3929.2,3929.1,0.23310656]
[1761353499600,0.228,3928.4,3928.3,0.68587339]
[1761353499805,0.228,3928.4,3928.2,3.2078]
[1761353499806,0.768,3928.3,3928.2,3.2078]
[1761353500207,0.768,3928.3,3928.2,3.4418]
[1761353500609,0.768,3928.3,3928.2,3.44395209]
[1761353502412,0.768,3928.3,3928.2,3.20995209]
[1761353503402,0.768,3928.3,3928.2,4.01075209]
[1761353503910,0.768,3928.3,3928.2,0.80295209]
[1761353506900,0.1357,3928.5,3928.2,0.80295209]
[1761353507106,9.017,3928.6,3928.5,0.8008]
[1761353507706,9.3436,3928.6,3928.5,0.8008]
[1761353508114,0.5546,3928.6,3928.5,0.8008]
[1761353509718,0.768,3928.6,3928.5,0.8008]
[1761353510019,0.768,3928.6,3928.5,0.453]
[1761353511914,0.1357,3929.0,3928.2,3.44395209]
[1761353511915,0.228,3928.3,3928.2,3.44395209]
[1761353512121,0.768,3928.3,3928.2,3.44395209]
[1761353512812,0.768,3928.3,3928.2,3.66295209]
[1761353514420,0.768,3928.3,3928.2,3.20995209]
[1761353514616,9.786,3928.3,3928.2,0.00215209]
[1761353516613,10.69887608,3928.3,3928.2,0.00215209]
[1761353517723,11.15388604,3928.3,3928.2,0.00215209]
[1761353522219,9.786,3928.3,3928.2,0.78635209]
[1761353522522,0.3266,3928.3,3928.2,1.24450209]
[1761353522715,8.8334,3928.5,3928.4,0.563]
[1761353522915,9.0469,3928.5,3928.4,0.7842]
[1761353524022,9.1802,3928.5,3928.4,0.7842]
[1761353526520,9.1802,3928.5,3928.3,0.45814]
[1761353526521,0.7834,3928.3,3928.2,3.20995209]
[1761353527121,0.7834,3928.3,3928.2,3.43755209]
[1761353529723,0.7834,3928.3,3928.2,0.00215209]
[1761353530031,2.15128604,3928.3,3928.2,0.00215209]
[1761353530327,2.15239324,3928.3,3928.2,0.00215209]
[1761353530634,2.15239688,3928.3,3928.2,0.00215209]
[1761353532527,0.7834,3928.3,3928.2,0.00215209]
[1761353533030,3.9912,3928.3,3928.2,0.00215209]
[1761353535733,3.9912,3928.3,3926.9,2.702]
[1761353535734,0.7855,3926.6,3926.5,0.68527577]
[1761353535939,0.1273,3927.0,3926.4,0.2128]
[1761353535940,1.37115,3926.5,3926.4,0.2128]
[1761353536627,1.37411293,3926.5,3926.4,0.21570693]
[1761353537232,0.91576293,3926.5,3926.4,0.78820693]
[1761353537435,0.00296293,3926.5,3926.4,0.78820693]
[1761353537936,0.00296293,3926.5,3926.4,5.78820693]
[1761353538833,0.00296293,3926.5,3926.4,0.78820693]
[1761353540947,0.00296293,3926.5,3926.4,3.49020693]
[1761353544952,0.32226293,3926.5,3926.4,3.49020693]
[1761353545148,0.91576293,3926.5,3926.4,0.00290693]
[1761353549753,0.91576293,3926.5,3926.4,0.21570693]
[1761353552760,0.32226293,3926.5,3926.4,0.78820693]
[1761353553152,0.55336293,3926.5,3926.4,0.78820693]
[1761353553547,0.68066293,3926.5,3926.4,0.78820693]
[1761353554943,0.91576293,3926.5,3926.4,0.78820693]
[1761353558662,0.32226293,3926.5,3926.4,0.78820693]
[1761353560361,0.91206293,3926.5,3926.4,0.78820693]
[1761353560560,0.91206293,3926.5,3926.4,0.43670693]
[1761353561464,0.91206293,3926.5,3926.4,0.00290693]
[1761353561857,1.82415146,3926.5,3926.4,0.00290693]
[1761353562057,0.2343,3925.9,3925.8,3.2078]
[1761353562253,1.24983,3925.9,3925.8,3.2078]
[1761353563069,1.24983,3925.9,3925.8,3.21066935]
[1761353564256,1.24983,3925.9,3925.8,3.43656935]
[1761353565463,0.4491,3924.2,3924.1,0.5555]
[1761353565654,0.4491,3924.2,3923.9,3.2078]
[1761353565655,0.7426,3924.2,3923.9,3.2078]
[1761353565964,0.7426,3923.7,3923.6,0.3296]
[1761353566365,0.4491,3923.3,3923.2,0.5555]
[1761353566666,0.4491,3923.3,3923.2,0.77069043]
[1761353568065,0.00328728,3923.7,3923.6,0.7675]
[1761353568252,0.23758728,3923.7,3923.6,0.7675]
[1761353568457,0.45238728,3923.7,3923.6,0.7675]
[1761353568965,0.4491,3923.1,3923.0,0.9079]
[1761353569461,0.2343,3923.1,3923.0,0.9079]
[1761353569865,0.2343,3923.1,3923.0,0.9100663]
[1761353570869,0.2935,3923.4,3923.3,0.7675]
[1761353570870,0.2343,3923.4,3923.3,0.7675]
[1761353571770,0.4491,3923.4,3923.3,0.7675]
[1761353573475,0.7426,3923.4,3923.3,0.7675]
[1761353574666,0.7426,3923.4,3923.3,0.5555]
[1761353574969,0.7426,3923.4,3923.0,0.0021663]
[1761353575156,0.7426,3923.4,3922.8,0.025492]
[1761353575157,0.96706,3923.0,3922.9,0.3296]
[1761353575357,1.20136,3923.0,3922.8,0.025492]
[1761353575655,3.9504,3922.9,3922.8,0.025492]
[1761353576070,3.9504,3922.9,3922.8,0.0276094]
[1761353582774,3.6569,3922.9,3922.8,0.8012094]
[1761353582970,3.6569,3922.9,3922.8,1.2599994]
[1761353583173,3.6569,3922.9,3922.8,0.8012094]
[1761353583174,9.2753,3922.9,3922.8,0.8012094]
[1761353583775,9.4916,3922.9,3922.8,0.8012094]
[1761353585964,9.2753,3922.9,3922.8,0.8012094]
[1761353586172,9.2677,3922.9,3922.8,0.8012094]
[1761353586575,9.484,3922.9,3922.8,0.8012094]
[1761353589275,9.7775,3922.9,3922.8,0.3509094]
[1761353590270,9.7775,3922.9,3922.8,0.0276094]
[1761353590470,9.7775,3922.9,3922.8,0.3560094]
[1761353590673,12.9853,3922.9,3922.8,0.0276094]
[1761353590877,12.9853,3922.9,3922.2,0.3284]
[1761353590878,1.20034,3922.3,3922.2,0.3284]
[1761353591775,1.20034,3922.3,3922.2,0.33069804]
[1761353591966,1.20034,3922.3,3922.2,0.00229804]
[1761353597677,0.2935,3921.5,3921.4,0.3284]
[1761353597883,9.7785,3921.5,3921.4,0.3284]
[1761353598284,9.485,3921.5,3921.4,0.7877]
[1761353598470,9.037,3921.5,3921.4,0.7877]
[1761353598676,9.037,3921.5,3921.4,0.79048]
[1761353598877,9.2614,3921.5,3921.4,0.79048]
[1761353599586,9.485,3921.5,3921.4,0.79048]
[1761353600087,9.7785,3921.5,3921.4,0.55978]
[1761353600486,9.485,3921.5,3921.4,0.79048]
[1761353601486,9.7785,3921.5,3921.4,0.79048]
[1761353601886,9.7785,3921.5,3921.4,0.00278]
[1761353602489,9.7785,3921.5,3921.4,0.33118]
[1761353603983,9.7785,3921.5,3921.4,0.55978]
[1761353605897,9.8485,3921.5,3921.4,0.00278]
[1761353606087,13.0563,3921.5,3921.4,0.00278]
[1761353610488,13.0563,3921.5,3920.8,3.2078]
[1761353610489,0.2935,3920.9,3920.8,3.2078]
[1761353610689,0.2935,3920.9,3920.5,0.1353]
[1761353610690,0.7415,3920.6,3920.5,0.1353]
[1761353610886,0.7415,3920.5,3920.4,0.45906]
[1761353611192,0.7415,3920.5,3920.4,1.01606]
[1761353611395,1.20055,3920.5,3920.4,0.3284]
[1761353611594,1.2038553,3920.5,3920.4,0.33093885]
[1761353611781,0.7448053,3920.5,3920.4,0.33093885]
[1761353613395,0.2277053,3920.5,3920.4,0.79023885]
[1761353613695,0.0033053,3920.5,3920.4,0.79023885]
[1761353614390,0.2277053,3920.5,3920.4,0.79023885]
[1761353614589,0.4513053,3920.5,3920.4,0.79023885]
[1761353614803,0.7448053,3920.5,3920.4,0.79023885]
[1761353615593,0.4513053,3920.5,3920.4,0.79023885]
[1761353621197,0.7453053,3920.5,3920.4,0.33093885]
[1761353621402,0.8217053,3920.5,3920.4,0.00253885]
[1761353621593,2.549,3919.6,3919.1,0.68510747]
[1761353621797,2.549,3919.6,3917.8,2.30680397]
[1761353621798,0.45935,3918.0,3917.8,0.02552453]
[1761353622097,0.45935,3918.0,3917.0,3.2078]
[1761353622098,0.294,3917.3,3917.1,0.3384]
[1761353622391,10.17129806,3917.2,3917.1,0.5661]
[1761353622598,10.17449098,3917.2,3917.1,2.93001614]
[1761353622799,0.00319292,3917.2,3917.1,2.93001614]
[1761353625699,0.72609292,3917.2,3917.1,2.13351614]
[1761353626009,0.72609292,3917.2,3915.9,0.3384]
[1761353626010,0.4289,3916.0,3915.9,0.3384]
[1761353626205,0.2126,3915.7,3915.6,2.13101013]
[1761353626498,0.766,3915.2,3915.1,0.2277]
[1761353626689,0.766,3915.2,3915.1,0.4581]
[1761353626890,0.3371,3915.1,3914.6,3.2078]
[1761353627094,0.4289,3915.1,3915.0,0.2277]
[1761353627399,0.2126,3915.5,3915.0,0.5879]
[1761353627606,0.2126,3915.5,3915.4,0.4581]
[1761353627802,0.3371,3915.4,3915.1,2.13101013]
[1761353628002,9.177,3915.7,3915.2,2.35871013]
[1761353628003,0.766,3915.3,3915.2,2.35871013]
[1761353628201,0.1348,3915.0,3914.6,0.00278023]
[1761353628503,0.3371,3914.7,3914.6,0.34118023]
[1761353628699,9.195,3914.9,3914.8,0.3384]
[1761353628894,9.5321,3915.4,3915.0,0.1298]
[1761353629207,0.3371,3915.3,3915.1,0.3384]
[1761353629398,0.3371,3915.3,3915.2,0.3384]
[1761353629600,0.3371,3915.3,3915.2,2.46941013]
[1761353630103,0.3371,3915.3,3915.2,2.13101013]
[1761353630104,0.79677,3915.3,3915.2,2.13101013]
[1761353630300,0.79677,3915.3,3914.7,3.5462]
[1761353630609,0.3371,3915.2,3914.9,0.3384]
[1761353631497,0.3371,3915.2,3915.1,0.3384]
[1761353631698,9.5321,3915.4,3915.2,0.3384]
[1761353631899,9.5321,3915.4,3915.3,0.3384]
[1761353632104,9.5321,3915.4,3915.3,2.46941013]
[1761353632301,9.195,3915.4,3915.3,2.46941013]
[1761353632804,9.195,3915.4,3915.3,2.92751013]
[1761353632998,0.5497,3915.8,3915.7,0.4581]
[1761353633208,0.5497,3915.8,3915.7,2.92751013]
[1761353633398,0.5497,3915.8,3915.7,3.38713013]
[1761353633705,12.6284,3916.0,3915.9,0.7965]
[1761353633895,12.6284,3916.0,3915.9,2.92751013]
[1761353634503,9.4206,3916.0,3915.9,2.92751013]
[1761353634899,3.2078,3916.5,3916.4,0.7965]
[1761353635099,3.4204,3916.5,3916.4,2.92751013]
[1761353635399,3.7575,3916.5,3916.4,3.38705013]
[1761353635600,3.2078,3916.5,3916.4,3.38705013]
[1761353635801,3.2078,3916.5,3916.4,2.92751013]
[1761353636001,4.1086,3916.5,3916.4,2.13101013]
[1761353636203,4.23103,3916.5,3916.0,0.5661]
[1761353636403,0.766,3916.3,3916.2,2.13101013]
[1761353636707,1.22555,3916.3,3916.2,2.13101013]
[1761353636900,0.766,3916.2,3916.1,2.13101013]
[1761353637100,0.766,3916.2,3916.1,4.26202026]
[1761353637300,9.976,3916.2,3916.1,4.26202026]
[1761353637713,9.6389,3916.2,3916.1,2.13101013]
[1761353638408,9.9636,3916.2,3916.1,2.13101013]
[1761353638803,9.21,3916.2,3916.1,2.93571013]
[1761353639509,9.4392,3916.2,3916.1,2.93571013]
[1761353640013,3.7617,3916.5,3916.4,0.8047]
[1761353640214,3.9839,3916.5,3916.4,2.93571013]
[1761353640516,3.9839,3916.5,3916.4,2.59161013]
[1761353641013,3.9839,3916.5,3916.4,2.93571013]
[1761353641314,9.209,3916.6,3916.5,1.40293]
[1761353641512,10.04678856,3916.6,3916.5,3.07441013]
[1761353641810,10.37148856,3916.6,3916.5,3.07441013]
[1761353642210,9.209,3916.6,3916.5,3.07441013]
[1761353642415,9.9851,3916.6,3916.5,2.36641013]
[1761353642612,0.5539,3917.5,3917.4,0.8047]
[1761353642910,0.2292,3917.5,3917.4,0.8047]
[1761353643111,0.83814709,3917.5,3917.4,0.8047]
[1761353643813,0.83814709,3917.5,3917.4,0.80712435]
[1761353643814,0.84123557,3917.5,3917.4,0.80712435]
[1761353644011,0.00308848,3917.5,3917.4,0.80712435]
[1761353646513,9.7619,3918.4,3917.5,1.14853]
[1761353646717,9.4372,3918.4,3918.3,1.26401]
[1761353646920,10.04523162,3918.4,3918.3,1.26401]
[1761353647118,9.81603162,3918.4,3918.3,1.26401]
[1761353647506,1.3927416,3918.4,3918.3,1.26401]
[1761353648520,1.3927416,3918.4,3918.3,0.8047]
[1761353650616,1.3927416,3918.4,3918.3,0.2354]
[1761353651213,2.75478003,3918.4,3918.3,0.2354]
[1761353651422,3.21409003,3918.4,3918.0,0.92104]
[1761353651616,0.8021,3917.9,3917.8,3.4311]
[1761353651822,1.41013162,3917.9,3917.8,3.4311]
[1761353653620,0.8021,3917.6,3917.5,0.5463]
[1761353653821,1.41013162,3917.6,3917.5,0.5463]
[1761353654324,1.86953162,3917.6,3917.5,0.5463]
[1761353654625,1.41013162,3917.6,3917.5,0.5463]
[1761353655026,1.40181,3917.5,3917.4,0.00242435]
[1761353655325,0.45947,3917.0,3916.9,3.2078]
[1761353655521,2.00990162,3917.0,3916.9,3.2078]
[1761353656416,2.00990162,3917.0,3916.9,3.21081466]
[1761353659219,2.00990162,3917.0,3916.9,3.43411466]
[1761353659421,3.82071933,3917.0,3916.9,0.00301466]
[1761353659725,1.26161,3916.6,3916.5,3.2078]
[1761353659927,1.86964162,3916.6,3916.5,3.2078]
[1761353660526,1.86964162,3916.6,3916.5,4.11100675]
[1761353660527,0.60803162,3916.6,3916.5,4.11100675]
[1761353662030,0.83363162,3916.6,3916.5,4.11100675]
[1761353663025,0.60803162,3916.6,3916.5,4.11100675]
[1761353663220,1.3610366,3916.7,3916.6,1.22281]
[1761353663221,1.5866366,3916.7,3916.6,1.22281]
[1761353663533,0.83783163,3916.7,3916.6,1.22281]
[1761353664219,1.26756952,3917.0,3916.9,0.7633]
[1761353664421,1.81193718,3917.4,3916.9,0.7633]
[1761353664422,0.4538,3917.3,3917.2,0.7633]
[1761353664622,0.8021,3917.3,3917.2,0.7633]
[1761353664815,0.8021,3917.3,3917.0,0.1373]
[1761353664816,0.8021,3917.3,3917.0,0.45946]
[1761353665019,0.8021,3917.1,3917.0,0.5463]
[1761353666028,0.8021,3917.1,3917.0,0.7633]
[1761353666824,0.8021,3916.8,3916.7,0.7633]
[1761353667338,0.8078,3916.7,3916.5,3.89400675]
[1761353667533,1.2616,3916.7,3916.6,0.5463]
[1761353667833,0.4538,3916.7,3916.6,0.7633]
[1761353668035,0.8021,3916.7,3916.6,0.7633]
[1761353670035,0.8021,3916.7,3916.6,0.2233]
[1761353671337,1.26161,3916.6,3916.5,0.00260675]
[1761353674426,0.8021,3916.6,3916.5,0.76590675]
[1761353674632,1.26158,3916.9,3916.8,0.7633]
[1761353676340,1.86475464,3916.9,3916.8,0.7633]
[1761353676530,1.05697464,3916.9,3916.8,0.7633]
[1761353676732,0.82877464,3916.9,3916.8,0.7633]
[1761353677645,1.51219405,3916.9,3916.8,0.7633]
[1761353677841,0.60317464,3916.9,3916.8,0.7633]
[1761353678236,0.90901941,3917.0,3916.9,1.21358]
[1761353678434,0.60359557,3917.0,3916.9,0.88778]
[1761353678939,0.60359557,3917.0,3916.9,6.21358]
[1761353682439,0.83879557,3917.0,3916.9,5.7541]
[1761353682643,0.83879557,3917.0,3916.5,0.13990675]
[1761353682644,0.8071,3916.3,3916.2,3.2078]
[1761353682844,1.41139533,3916.3,3916.2,3.2078]
[1761353683149,2.32041474,3916.3,3916.2,3.4211]
[1761353683348,2.32041474,3916.3,3916.2,3.7469]
[1761353683550,2.32041474,3916.3,3916.2,3.74977825]
[1761353686249,1.41139533,3916.3,3916.2,3.96477825]
[1761353687551,1.06009533,3916.3,3916.2,3.96477825]
[1761353688047,1.41139533,3916.3,3916.2,3.96477825]
[1761353688246,10.60839533,3916.3,3916.2,3.21067825]
[1761353689539,10.94551474,3916.3,3916.2,0.75697825]
[1761353689741,11.51741474,3916.3,3916.2,0.75697825]
[1761353689941,11.51741474,3916.3,3916.2,0.21617825]
[1761353690137,10.60839533,3916.3,3916.2,0.21617825]
[1761353690753,10.60839533,3916.3,3916.2,0.54197825]
[1761353690951,10.60839533,3916.3,3916.2,0.75697825]
[1761353697255,10.60839533,3916.3,3916.2,0.00287825]
[1761353697256,11.51741474,3916.3,3916.2,0.00287825]
[1761353699059,11.51741474,3916.3,3916.2,0.55777825]
[1761353699858,11.51741474,3916.3,3916.2,0.79167825]
[1761353700750,10.60839533,3916.3,3916.2,0.79167825]
[1761353702956,10.60839533,3916.3,3916.2,0.21617825]
[1761353703163,10.60839533,3916.3,3916.2,0.00287825]
[1761353704559,10.60839533,3916.3,3916.2,0.79657825]
[1761353704872,0.60429533,3916.3,3916.2,0.79657825]
[1761353705964,0.5559,3917.0,3916.9,0.4521]
[1761353706164,0.7693,3917.0,3916.9,0.7937]
[1761353707865,0.4365,3917.0,3916.9,0.7937]
[1761353708659,0.2231,3917.0,3916.9,0.7937]
[1761353709880,12.3748,3917.6,3916.9,0.7937]
[1761353709881,3.19737878,3918.8,3917.4,0.45942]
[1761353710161,0.79830998,3918.4,3918.3,4.0101]
[1761353710365,0.79830998,3918.4,3918.3,1.26161]
[1761353711162,0.00260998,3918.4,3918.3,1.26161]
[1761353711467,0.79830998,3918.4,3918.3,1.26161]
[1761353712556,0.45932,3918.2,3917.7,3.2078]
[1761353712764,0.7957,3917.8,3917.7,4.0101]
[1761353713568,0.7957,3918.1,3918.0,1.40105]
[1761353714169,0.7957,3918.1,3918.0,0.9417]
[1761353714370,0.7957,3918.1,3918.0,0.8023]
[1761353717375,0.7957,3918.1,3918.0,0.9417]
[1761353719367,0.7957,3918.1,3918.0,0.8023]
[1761353719971,0.79830998,3918.4,3918.3,0.3469]
[1761353720274,0.56290998,3918.4,3918.3,0.8023]
[1761353720574,0.79830998,3918.4,3918.3,0.8023]
[1761353723976,0.3461,3918.3,3918.2,0.45932]
[1761353724281,0.7957,3918.3,3918.2,1.03202]
[1761353724871,0.7957,3918.3,3918.2,0.2258]
[1761353725577,0.7957,3918.3,3918.2,0.5727]
[1761353725774,0.7957,3918.3,3918.2,0.8023]
[1761353727684,0.9324,3918.0,3917.7,3.2078]
[1761353727868,0.7957,3917.9,3917.8,1.26167]
[1761353728076,0.2142,3917.9,3917.8,1.26167]
[1761353728977,0.7957,3918.2,3918.1,1.26164]
[1761353730677,0.7957,3918.2,3918.1,0.8023]
[1761353731776,0.7957,3918.2,3918.1,0.7991]
[1761353731980,0.7957,3918.2,3918.1,0.7967]
[1761353732675,0.3461,3918.1,3918.0,0.45935]
[1761353732983,0.7957,3918.1,3918.0,0.45935]
[1761353733181,0.7957,3918.1,3918.0,0.68515]
[1761353733578,0.7957,3918.1,3918.0,1.05415]
[1761353733982,0.7957,3918.1,3918.0,1.40105]
[1761353734382,0.4496,3918.1,3918.0,1.40105]
[1761353734984,0.2142,3918.1,3918.0,1.40105]
[1761353735177,0.56290998,3918.4,3918.3,1.26162]
[1761353735377,0.00260998,3918.4,3918.3,1.26162]
[1761353735579,0.21680998,3918.4,3918.3,1.26162]
[1761353736574,0.00260998,3918.4,3918.3,1.26162]
[1761353736881,0.56290998,3918.4,3918.3,1.26162]
[1761353737089,0.79830998,3918.4,3918.3,1.26162]
[1761353743091,0.79830998,3918.4,3918.3,0.8023]
[1761353750881,0.00260998,3918.4,3918.3,4.0101]
[1761353751087,0.91241118,3918.8,3918.7,0.7953]
[1761353751288,1.12631118,3919.0,3918.9,0.7953]
[1761353751689,0.2139,3919.0,3918.9,0.7953]
[1761353752092,0.2165122,3919.0,3918.9,0.7953]
[1761353753395,0.7986,3918.8,3918.7,4.24977]
[1761353753595,0.7986,3918.8,3918.7,4.46237]
[1761353754691,0.4457,3918.8,3918.7,4.46237]
[1761353754893,0.2139,3918.8,3918.7,4.46237]
[1761353755592,0.5668,3918.8,3918.7,4.46237]
[1761353757197,0.5694122,3919.0,3918.9,1.04195]
[1761353757503,0.5694122,3919.0,3918.9,1.25455]
[1761353758294,0.7937,3918.8,3918.7,3.7665]
[1761353758799,0.7937,3918.8,3918.7,3.9906]
[1761353763404,0.7937,3918.8,3918.7,0.7828]
[1761353764507,2.15595955,3918.8,3918.7,0.7828]
[1761353765621,1.36225955,3918.8,3918.7,3.9906]
[1761353765826,1.36487175,3919.0,3918.8,0.90996]
[1761353766126,1.36487175,3919.0,3918.9,0.7828]
[1761353766509,0.0026122,3919.0,3918.9,0.7828]
[1761353773524,1.25674,3918.9,3918.8,2.702]
[1761353774124,0.7975,3918.9,3918.8,2.702]
[1761353774427,0.7975,3918.9,3918.8,3.2817]
[1761353774624,0.7975,3918.9,3918.8,3.5142]
[1761353778630,0.7975,3918.9,3918.8,0.8122]
[1761353780626,0.2312,3918.9,3918.8,0.8122]
[1761353781025,0.0026122,3919.0,3918.9,1.27145]
[1761353787334,0.0026122,3919.0,3918.9,1.95959521]
[1761353788724,0.0026122,3919.0,3918.9,1.27145]
[1761353789127,0.8001122,3919.0,3918.9,1.27145]
[1761353790822,0.5689122,3919.0,3918.9,1.27145]
[1761353791128,0.0026122,3919.0,3918.9,1.27145]
[1761353791332,0.2338122,3919.0,3918.9,1.27145]
[1761353796150,0.0026122,3919.0,3918.9,1.27145]
[1761353799634,0.0026122,3919.0,3918.9,10.37645]
[1761353803843,0.2350122,3919.0,3918.9,0.8122]
[1761353804147,0.2350122,3919.0,3918.9,9.9122]
[1761353804339,0.0026122,3919.0,3918.9,9.9122]
[1761353811752,0.0026122,3919.0,3918.9,10.60034521]
[1761353812857,0.0026122,3919.0,3918.9,9.9122]
[1761353814753,0.0026122,3919.0,3918.9,9.9092]
[1761353817557,0.0026122,3919.0,3918.9,13.117]
[1761353820257,0.0026122,3919.0,3918.9,15.819]
[1761353822262,0.5377122,3919.0,3918.9,6.722]
[1761353822453,0.7707122,3919.0,3918.9,6.722]
[1761353822754,0.7707122,3919.0,3918.9,16.50614521]
[1761353822755,0.2186122,3919.0,3918.9,16.50614521]
[1761353822961,0.0026122,3919.0,3918.9,16.50614521]
[1761353823151,0.0026122,3919.0,3918.9,7.41014521]
[1761353823860,0.5377122,3919.0,3918.9,7.41014521]
[1761353824960,0.7707122,3919.0,3918.9,7.41014521]
[1761353825372,0.0026122,3919.0,3918.9,7.41014521]
[1761353825749,0.5377122,3919.0,3918.9,7.41014521]
[1761353826253,0.5377122,3919.0,3918.9,4.70814521]
[1761353826662,0.7707122,3919.0,3918.9,4.70814521]
[1761353826849,0.0026122,3919.0,3918.9,4.70814521]
[1761353827051,0.0026122,3919.0,3918.9,4.02]
[1761353828759,0.0026122,3919.0,3918.9,6.722]
[1761353829061,1.2432,3919.3,3919.2,0.558]
[1761353829864,1.2432,3919.3,3919.2,0.55990326]
[1761353829865,1.24553557,3919.3,3919.2,0.55990326]
[1761353833766,0.78633557,3919.3,3919.2,0.78320326]
[1761353836360,0.78633557,3919.3,3919.2,0.00190326]
[1761353836869,0.78633557,3919.3,3919.2,0.78320326]
[1761353838766,1.69914078,3919.3,3919.2,0.78320326]
[1761353838953,1.69914078,3919.3,3919.2,0.55990326]
[1761353840464,1.69914078,3919.3,3919.2,0.22350326]
[1761353840962,0.78633557,3919.3,3919.2,0.00190326]
[1761353842169,0.78633557,3919.3,3919.2,0.78320326]
[1761353842466,1.35837719,3919.3,3919.2,0.78320326]
[1761353843164,1.69997719,3919.3,3919.2,0.78320326]
[1761353843865,2.15917719,3919.3,3919.2,0.78320326]
[1761353844369,1.69997719,3919.3,3919.2,0.78320326]
[1761353844869,0.78633557,3919.3,3919.2,0.78320326]
[1761353845669,0.00233557,3919.3,3919.2,0.78320326]
[1761353848069,0.00233557,3919.3,3919.2,1.47200352]
[1761353848466,0.00233557,3919.3,3919.2,0.78320326]
[1761353850173,0.78633557,3919.3,3919.2,1.47167116]
[1761353850368,0.78633557,3919.3,3919.2,0.55990326]
[1761353851873,0.78633557,3919.3,3919.2,0.78320326]
[1761353855881,0.78633557,3919.3,3919.2,0.00190326]
[1761353857572,0.78633557,3919.3,3919.2,0.78320326]
[1761353857573,0.21553557,3919.3,3919.2,0.78320326]
[1761353857762,0.53613557,3919.3,3919.2,0.78320326]
[1761353857958,0.76643557,3919.3,3919.2,0.78320326]
[1761353864578,0.21553557,3919.3,3919.2,0.78320326]
[1761353864777,0.00233557,3919.3,3919.2,0.78320326]
[1761353864977,0.54983557,3919.3,3919.2,0.78320326]
[1761353865184,0.78013557,3919.3,3919.2,0.78320326]
[1761353872600,0.00233557,3919.3,3919.2,0.78320326]
[1761353874400,0.54983557,3919.3,3919.2,0.78320326]
[1761353876405,0.78013557,3919.3,3919.2,0.78320326]
[1761353882808,1.69313242,3919.3,3919.2,0.78320326]
[1761353888111,0.91533242,3919.3,3919.2,0.78320326]
[1761353888413,0.58183557,3919.3,3919.2,0.78320326]
[1761353888610,0.00233557,3919.3,3919.2,0.78320326]
[1761353888812,0.91299685,3920.0,3919.8,0.3196]
[1761353889001,0.91299685,3920.0,3919.5,1.28891]
[1761353889002,0.91299685,3920.0,3919.9,1.22822]
[1761353889208,0.91299685,3920.1,3919.9,1.22822]
[1761353889402,0.91299685,3920.3,3920.2,0.7691]
[1761353889613,1.49249685,3920.4,3920.3,0.7691]
[1761353889814,1.49523412,3920.4,3920.3,0.7691]
[1761353890208,0.80793727,3920.4,3920.3,0.7691]
[1761353891813,0.00273727,3920.4,3920.3,0.7691]
[1761353892015,0.23103727,3920.4,3920.3,0.7691]
[1761353893517,0.58223727,3920.4,3920.3,0.7691]
[1761353894814,0.00273727,3920.4,3920.3,0.7691]
[1761353895410,0.80793727,3920.4,3920.3,0.7691]
[1761353895616,1.26700727,3920.4,3920.3,0.5447]
[1761353897108,1.26700727,3920.4,3920.3,0.7691]
[1761353899822,0.80793727,3920.4,3920.3,0.7691]
[1761353908235,0.00273727,3920.4,3920.3,0.7691]
[1761353911239,0.00273727,3920.4,3920.3,9.8501]
[1761353916743,0.58223727,3920.4,3920.3,9.8501]
[1761353918537,0.00273727,3920.4,3920.3,9.8501]
[1761353918739,0.00273727,3920.4,3920.3,10.53886474]
[1761353920236,0.00273727,3920.4,3920.3,13.74666474]
[1761353926344,0.00273727,3920.4,3920.3,13.0579]
[1761353926546,0.79603727,3920.4,3920.3,3.9769]
[1761353926745,0.79603727,3920.4,3920.3,13.0529]
[1761353927348,0.79603727,3920.4,3920.3,3.7525]
[1761353927957,0.79603727,3920.4,3920.3,0.5447]
[1761353928341,0.79603727,3920.4,3920.1,1.012]
[1761353928342,0.7933,3920.2,3920.1,1.012]
[1761353928746,0.7933,3920.2,3920.1,1.2295]
[1761353930549,1.0225,3920.1,3920.0,0.3196]
[1761353930757,2.16539685,3920.1,3920.0,0.3196]
[1761353931058,2.16539685,3920.1,3920.0,0.5529]
[1761353931358,1.2524,3920.1,3920.0,0.5529]
[1761353931860,1.2524,3920.1,3920.0,0.7704]
[1761353931861,0.7933,3920.1,3920.0,0.7704]
[1761353932357,0.2254,3920.1,3920.0,0.9062]
[1761353932951,0.7933,3920.1,3920.0,0.9062]
[1761353933858,0.2254,3920.1,3920.0,0.9062]
[1761353934052,0.00273727,3920.4,3920.3,0.7704]
[1761353934257,0.56613727,3920.4,3920.3,0.7704]
[1761353935564,0.56613727,3920.4,3920.3,1.22948]
[1761353936562,0.79603727,3920.4,3920.3,1.22948]
[1761353936754,0.79603727,3920.4,3920.3,0.7704]
[1761353962799,1.70996807,3920.4,3920.3,0.7704]
[1761353964299,1.14206807,3920.4,3920.3,0.7704]
[1761353964696,0.22813727,3920.4,3920.3,3.9782]
[1761353965096,0.55363727,3920.4,3920.3,3.9782]
[1761353968304,0.78083727,3920.4,3920.3,3.9782]
[1761353969304,0.00273727,3920.4,3920.3,3.9782]